bitfinex-derivatives/quotes_SOLF0:USTF0_20250228
["timestamp","ask_amount","ask_price","bid_price","bid_amount"]
[1740731212866,3.8965,129.74,129.68,0.05139937]
[1740731213064,3.7439,129.73,129.59,1.54332896]
[1740731213365,3.7439,129.73,129.7,0.05120435]
[1740731213670,3.7439,129.73,129.59,1.54332896]
[1740731213866,3.7439,129.73,129.7,0.05658954]
[1740731214065,3.7439,129.73,129.59,1.54332896]
[1740731214267,3.7439,129.73,129.7,0.05454849]
[1740731214472,3.7231,129.72,129.59,1.54332896]
[1740731214763,1.38093372,129.71,129.59,1.54332896]
[1740731214971,3.7231,129.72,129.59,1.54332896]
[1740731215471,3.7439,129.73,129.59,1.54332896]
[1740731215773,0.05132102,129.67,129.64,0.05355343]
[1740731216069,0.05132102,129.67,129.66,7.7211]
[1740731216260,3.7439,129.73,129.66,7.7211]
[1740731216459,0.05218932,129.68,129.66,7.7211]
[1740731216661,3.7439,129.73,129.67,7.7209]
[1740731216870,3.7439,129.73,129.59,1.54332896]
[1740731217066,0.05601817,129.68,129.66,0.05011419]
[1740731217469,3.7439,129.73,129.67,7.7208]
[1740731217669,0.0500611,129.68,129.67,7.7208]
[1740731217964,3.7439,129.73,129.67,7.7208]
[1740731218173,0.05141823,129.69,129.66,0.05772851]
[1740731218469,0.05141823,129.69,129.59,1.54332896]
[1740731218766,30.89141823,129.69,129.67,7.7204]
[1740731218972,30.84,129.69,129.67,7.7204]
[1740731219171,3.665e-05,129.65,129.59,1.54332896]
[1740731219471,30.84,129.69,129.59,1.54332896]
[1740731219970,38.5598,129.69,129.63,7.7231]
[1740731220171,30.84,129.69,129.59,1.54332896]
[1740731220371,7.7205,129.68,129.65,0.05860502]
[1740731220773,30.84,129.69,129.65,0.05860502]
[1740731221975,3.9029,129.68,129.65,0.05860502]
[1740731222368,3.9029,129.68,129.59,1.54332896]
[1740731222668,1.38110565,129.67,129.55,210.14]
[1740731222873,3.9149,129.66,129.55,210.14]
[1740731223073,3.7548,129.65,129.55,210.14]
[1740731223277,36.1748,129.65,129.55,210.14]
[1740731223672,0.05694832,129.61,129.47,210.02]
[1740731224068,7.7268,129.58,129.47,210.02]
[1740731224272,7.648,129.57,129.47,210.02]
[1740731224468,14.68,129.63,129.47,210.02]
[1740731224676,7.648,129.62,129.55,7.7276]
[1740731224876,7.648,129.62,129.47,210.02]
[1740731225073,7.78286711,129.56,129.54,0.05742261]
[1740731225275,0.05536711,129.56,129.47,210.02]
[1740731225475,1.38201397,129.61,129.47,210.02]
[1740731225775,214.78201992,129.6,129.41,14.66]
[1740731226078,23.4,129.58,129.4,141.50723165]
[1740731226279,23.4,129.56,129.41,7.7359]
[1740731226481,0.0552765,129.5,129.48,0.05421226]
[1740731226776,28.75761992,129.53,129.39,210.02]
[1740731226978,1.38201992,129.52,129.39,210.02]
[1740731227177,1.38201992,129.52,129.32,15.53361436]
[1740731227178,23.4,129.51,129.32,15.53361436]
[1740731227374,190.0,129.52,129.32,15.53361436]
[1740731227572,5.1597193,129.5,129.32,15.53361436]
[1740731227772,1.3831193,129.49,129.32,0.85361436]
[1740731227973,0.05892028,129.46,129.32,0.85361436]
[1740731228173,0.05892028,129.46,129.31,210.06]
[1740731228373,7.7334,129.47,129.31,210.06]
[1740731228577,14.66,129.48,129.31,210.06]
[1740731228778,1.38336037,129.47,129.31,210.06]
[1740731229277,0.05272832,129.44,129.41,0.04971716]
[1740731230173,0.05272832,129.44,129.43,7.7353]
[1740731230374,2.832e-05,129.44,129.43,7.7353]
[1740731230581,3.7766,129.5,129.43,3.86]
[1740731230778,3.7766,129.5,129.46,7.733]
[1740731231080,3.7766,129.5,129.35,14.68]
[1740731231276,3.7766,129.5,129.44,7.7342]
[1740731231471,3.7766,129.5,129.35,14.68]
[1740731231877,7.7329,129.47,129.46,0.05857737]
[1740731232080,14.66,129.49,129.35,14.68]
[1740731232480,3.7766,129.5,129.35,14.68]
[1740731232881,3.9289,129.52,129.38,20.4408679]
[1740731233273,0.05814743,129.46,129.44,0.05285819]
[1740731233679,3.9289,129.52,129.48,7.7323]
[1740731233888,3.9289,129.52,129.38,20.4408679]
[1740731234585,3.9289,129.52,129.39,10.65143375]
[1740731234773,3.9289,129.52,129.39,17.30857984]
[1740731234979,0.05858133,129.46,129.44,0.05511687]
[1740731235382,3.9289,129.52,129.39,17.30857984]
[1740731235584,0.0552194,129.46,129.44,0.05762078]
[1740731235981,3.7908,129.54,129.44,3.86]
[1740731236282,7.7263,129.58,129.5,7.7306]
[1740731236589,3.9827,129.59,129.44,139.34944255]
[1740731236785,3.9827,129.59,129.45,1.54499806]
[1740731237185,0.05874159,129.53,129.51,0.053266]
[1740731239983,0.05035047,129.46,129.44,0.04987297]
[1740731241086,3.49,129.53,129.44,0.04987297]
[1740731241491,7.7327,129.48,129.39,17.30857984]
[1740731241687,3.49,129.53,129.39,17.30857984]
[1740731242284,0.05932466,129.47,129.45,0.05078487]
[1740731242488,0.05932466,129.47,129.39,11.24757984]
[1740731242785,195.02436854,129.48,129.39,5.18707984]
[1740731242985,1.38276854,129.47,129.34,210.2]
[1740731243388,190.0,129.46,129.26,210.24]
[1740731243584,7.737,129.4,129.39,0.05246274]
[1740731243785,14.73254799,129.42,129.31,7.7423]
[1740731243994,14.68,129.42,129.26,210.24]
[1740731244189,204.68,129.42,129.26,210.24]
[1740731244385,14.68,129.42,129.25,18.89503393]
[1740731244590,14.68,129.42,129.25,26.64053393]
[1740731244591,1.38420497,129.41,129.25,26.64053393]
[1740731244785,12.64420497,129.41,129.25,18.89503393]
[1740731244989,0.05401475,129.35,129.32,3.128e-05]
[1740731245190,7.7412,129.33,129.32,3.128e-05]
[1740731245386,14.68,129.34,129.25,18.89503393]
[1740731246399,0.05233668,129.31,129.28,0.04993214]
[1740731247800,0.05233668,129.31,129.25,18.89503393]
[1740731248203,1.43730983,129.31,129.25,6.76923393]
[1740731248819,0.05233668,129.31,129.25,6.76923393]
[1740731249008,1.43738167,129.31,129.25,6.76923393]
[1740731249204,190.0,129.3,129.18,210.24]
[1740731249407,191.38540569,129.29,129.1,210.38]
[1740731249710,191.38540569,129.28,129.1,210.38]
[1740731249910,16.04540569,129.27,129.1,210.38]
[1740731250113,1.38540569,129.26,129.1,210.38]
[1740731250413,0.05670483,129.2,129.17,0.05946589]
[1740731250814,1.38540569,129.26,129.1,210.38]
[1740731251009,0.05385152,129.2,129.17,0.05710215]
[1740731251209,30.95,129.23,129.1,210.38]
[1740731251415,0.05348278,129.2,129.17,0.05477359]
[1740731251813,0.05348278,129.2,129.18,7.7501]
[1740731252013,30.95,129.23,129.17,0.05477359]
[1740731252516,19.34,129.24,129.17,4.05637359]
[1740731252716,7.5367,129.32,129.17,7.89827359]
[1740731252916,7.5367,129.32,129.17,7.8435]
[1740731253318,0.05758501,129.26,129.23,0.05492638]
[1740731253519,190.0,129.38,129.23,0.05492638]
[1740731253818,7.7432,129.3,129.24,7.7465]
[1740731254019,3.7251,129.35,129.24,7.7465]
[1740731254218,7.7432,129.3,129.24,7.7465]
[1740731254819,0.0514491,129.28,129.26,0.0552565]
[1740731255022,19.32,129.34,129.26,0.0552565]
[1740731255218,19.32,129.34,129.23,14.66]
[1740731255923,11.26,129.41,129.23,18.52]
[1740731256223,11.26,129.41,129.27,0.04939563]
[1740731256516,11.26,129.41,129.32,7.7417]
[1740731256721,11.26,129.41,129.33,210.52]
[1740731257123,6.0225,129.41,129.33,210.52]
[1740731257323,6.0225,129.41,129.34,1.54631204]
[1740731257523,0.687,129.41,129.36,0.05099692]
[1740731257721,3.657,129.48,129.36,0.05099692]
[1740731258023,10.47273276,129.5,129.36,139.34944255]
[1740731258524,33.08,129.49,129.37,1.54595346]
[1740731258723,0.0564545,129.44,129.42,0.05432186]
[1740731258920,33.08,129.49,129.42,0.05432186]
[1740731259725,63.19,129.49,129.42,0.05432186]
[1740731260017,0.05331197,129.47,129.42,0.05432186]
[1740731261625,30.74,129.52,129.42,0.05432186]
[1740731261824,30.74,129.52,129.39,14.66]
[1740731262120,7.7307,129.51,129.4,1.54559505]
[1740731262325,30.74,129.52,129.4,1.54559505]
[1740731262923,0.0591513,129.47,129.45,0.05949985]
[1740731263328,37.1,129.52,129.45,0.05949985]
[1740731263522,0.04896324,129.47,129.45,0.05949985]
[1740731263825,0.05954187,129.47,129.45,0.05949985]
[1740731266321,7.7335,129.46,129.45,9.985e-05]
[1740731269320,7.79254187,129.47,129.45,9.985e-05]
[1740731269524,0.05954187,129.47,129.45,9.985e-05]
[1740731269934,7.7335,129.46,129.45,9.985e-05]
[1740731270631,0.05954187,129.47,129.45,9.985e-05]
[1740731274933,7.7335,129.46,129.45,9.985e-05]
[1740731275735,0.05954187,129.47,129.45,9.985e-05]
[1740731279835,0.05954187,129.47,129.45,7.73379985]
[1740731280236,0.05954187,129.47,129.45,9.985e-05]
[1740731280735,3.5,129.5,129.45,9.985e-05]
[1740731280736,3.5,129.5,129.45,3.86009985]
[1740731280931,3.5,129.5,129.45,7.73399985]
[1740731281138,3.5,129.5,129.45,9.985e-05]
[1740731281837,0.05179902,129.49,129.45,9.985e-05]
[1740731282134,3.5,129.5,129.45,3.86009985]
[1740731282331,35.15,129.52,129.45,3.86009985]
[1740731282534,7.7265,129.58,129.45,9.985e-05]
[1740731282738,7.7436,129.6,129.45,9.985e-05]
[1740731282938,7.7436,129.6,129.44,210.28]
[1740731283339,0.03749712,129.51,129.48,0.05146294]
[1740731283538,190.0,129.65,129.49,14.56]
[1740731283839,0.09,129.58,129.49,14.56]
[1740731284140,125.53301233,129.68,129.5,1.54440154]
[1740731284845,125.53301233,129.68,129.57,0.05113933]
[1740731285044,125.53301233,129.68,129.58,224.82]
[1740731285338,125.53301233,129.68,129.61,0.05939484]
[1740731285648,4.27,129.65,129.61,0.05939484]
[1740731285941,29.59,129.71,129.62,1.54297176]
[1740731286136,29.59,129.71,129.62,1.59760192]
[1740731286334,29.59,129.71,129.62,1.54297176]
[1740731286531,29.59,129.71,129.65,0.05383225]
[1740731287143,125.53301233,129.74,129.65,14.59383225]
[1740731287338,125.53301233,129.74,129.66,1.54249575]
[1740731287642,125.53301233,129.74,129.68,0.05944564]
[1740731287843,125.53301233,129.74,129.69,210.12]
[1740731288243,7.7555,129.86,129.7,1.54202004]
[1740731288546,14.72,129.98,129.7,140.89146259]
[1740731288743,11.4569,129.92,129.77,0.0579581]
[1740731288942,11.4569,129.92,129.78,14.72]
[1740731288943,1.40043285,129.91,129.78,14.72]
[1740731289139,11.4569,129.92,129.78,14.72]
[1740731289334,11.4569,129.92,129.83,0.04929702]
[1740731289747,11.4569,129.92,129.78,14.72]
[1740731289944,11.4569,129.92,129.86,0.05505941]
[1740731290844,11.4569,129.92,129.9,444.78273077]
[1740731291048,11.4569,129.92,129.9,703.78857591]
[1740731291250,7.7072,129.91,129.9,667.93967591]
[1740731291449,7.7072,129.91,129.9,655.8974932]
[1740731291743,7.7067,129.91,129.9,595.8898932]
[1740731291943,11.5467,129.91,129.9,544.54641063]
[1740731292149,11.5467,129.91,129.9,0.05681729]
[1740731292150,3.84,129.91,129.9,0.05681729]
[1740731292345,11.5467,129.91,129.9,0.05681729]
[1740731292546,213.82,129.91,129.87,237.57805466]
[1740731292745,7.7085,129.88,129.87,237.57805466]
[1740731292948,14.66,129.9,129.87,237.57805466]
[1740731293144,18.5,129.9,129.87,237.57805466]
[1740731293349,7.7085,129.88,129.87,237.57805466]
[1740731293550,18.5,129.9,129.87,237.57805466]
[1740731293746,0.05532736,129.89,129.87,237.57805466]
[1740731294049,7.76342736,129.89,129.87,237.57805466]
[1740731294252,0.05532736,129.89,129.87,237.57805466]
[1740731294442,3.89532736,129.89,129.87,237.57805466]
[1740731294839,0.05532736,129.89,129.87,237.57805466]
[1740731295149,0.05532736,129.89,129.86,0.04971663]
[1740731297755,7.76342736,129.89,129.86,0.04971663]
[1740731297955,0.05532736,129.89,129.86,0.04971663]
[1740731304862,0.05532736,129.89,129.8,0.48670592]
[1740731305254,26.98,129.96,129.8,0.48670592]
[1740731305959,7.7057,129.93,129.84,7.7108]
[1740731306162,0.05054804,129.89,129.87,0.05928514]
[1740731307653,0.05054804,129.89,129.87,7.76788514]
[1740731307957,0.05054804,129.89,129.87,0.05928514]
[1740731308165,7.4566,130.01,129.87,3.89928514]
[1740731308359,3.3844,130.05,129.87,0.05928514]
[1740731308564,3.3844,130.05,129.85,153.80944255]
[1740731308565,3.6594,130.04,129.85,153.80944255]
[1740731308862,3.6594,130.04,129.85,14.46]
[1740731309062,3.7972,130.09,129.85,14.46]
[1740731309263,0.05045684,129.96,129.94,7.7049]
[1740731309456,0.05045684,129.96,129.85,153.80944255]
[1740731309657,29.18,130.01,129.85,14.46]
[1740731309859,29.18,130.01,129.97,7.7031]
[1740731310059,29.18,130.01,129.94,0.05392456]
[1740731310259,29.18,130.01,129.86,7.371]
[1740731310457,0.05179775,130.0,129.96,0.050081]
[1740731310665,29.18,130.01,129.87,140.88944409]
[1740731310858,0.05449595,129.99,129.87,140.88944409]
[1740731311059,0.05449595,129.99,129.97,7.75646555]
[1740731311261,29.18,130.01,129.88,1.53988296]
[1740731311563,9.292e-05,129.94,129.93,7.7055]
[1740731311958,29.18,130.01,129.88,1.53988296]
[1740731312265,29.18,130.01,129.88,140.88932551]
[1740731312561,23.1253,130.01,129.88,140.88932551]
[1740731312770,11.0889,130.18,129.93,0.05432241]
[1740731312962,7.6957,130.1,130.04,7.6988]
[1740731313265,190.0,130.16,129.94,225.63917192]
[1740731313463,7.6972,130.07,130.06,6.081e-05]
[1740731313861,3.84,130.07,129.94,1.53917192]
[1740731314061,201.0889,130.06,129.89,14.5]
[1740731314266,11.0889,130.06,129.9,1.53964588]
[1740731314468,11.0889,130.06,129.9,140.88908843]
[1740731314771,0.05604851,129.99,129.97,0.04911692]
[1740731315263,7.6997,130.03,129.9,140.88908843]
[1740731315469,0.0568067,129.99,129.97,0.05213543]
[1740731316264,0.0568067,129.99,129.87,0.84987338]
[1740731316464,7.7032,129.97,129.85,224.04]
[1740731316663,14.5,130.01,129.85,224.04]
[1740731316863,3.8783,130.0,129.85,224.04]
[1740731317066,3.8783,130.0,129.85,225.58023873]
[1740731317363,3.8783,130.0,129.86,1.54012012]
[1740731317565,9.647e-05,129.94,129.91,0.05300794]
[1740731317962,9.647e-05,129.94,129.87,7.728]
[1740731317963,3.8783,130.0,129.96,7.7032]
[1740731318559,190.0,130.05,129.87,7.728]
[1740731318761,3.8023,130.06,129.97,0.05567468]
[1740731318762,8.277e-05,129.99,129.97,0.05567468]
[1740731319167,3.7163,130.04,130.02,7.6997]
[1740731319369,3.8023,130.06,129.95,7.733]
[1740731319565,4.5563,130.07,129.95,7.733]
[1740731319970,4.5563,130.07,130.0,0.05233699]
[1740731320371,4.5563,130.07,130.03,7.6991]
[1740731320772,4.5563,130.07,130.04,7.6989]
[1740731320971,4.5563,130.07,130.04,7.75374246]
[1740731321175,4.5563,130.07,130.04,0.05484246]
[1740731321373,3.7196,130.06,129.95,11.7026]
[1740731321574,3.7196,130.06,130.0,7.7012]
[1740731321873,3.7196,130.06,129.95,11.7026]
[1740731322476,0.05191974,130.02,129.99,0.05613777]
[1740731322979,0.05191974,130.02,129.88,139.34944255]
[1740731323181,0.05191974,130.02,129.89,7.8622]
[1740731323371,3.7196,130.06,129.9,1.53964588]
[1740731323576,4.5563,130.07,129.9,1.53964588]
[1740731323775,0.84,130.07,129.9,1.53964588]
[1740731323979,0.84,130.07,129.91,15.4133]
[1740731324280,6.174e-05,130.0,129.97,0.05919119]
[1740731324672,7.699,130.04,129.94,14.5]
[1740731324876,3.677,130.06,129.94,14.5]
[1740731325480,0.05333186,130.01,129.99,0.05342158]
[1740731325676,0.84,130.07,129.99,0.05342158]
[1740731325980,0.84,130.07,129.96,3.813]
[1740731326180,0.84,130.07,129.97,3.9242]
[1740731326477,0.84,130.07,130.06,7.6978]
[1740731327583,0.84,130.07,130.05,0.05250471]
[1740731328282,0.84,130.07,130.05,7.75070471]
[1740731328477,0.84,130.07,130.05,0.05250471]
[1740731328782,0.84,130.07,130.06,7.6978]
[1740731329676,7.6937,130.13,130.05,0.05250471]
[1740731329975,7.5013,130.16,130.01,145.49847605]
[1740731330177,7.6933,130.14,130.08,0.05242849]
[1740731330381,7.5013,130.16,130.08,0.05242849]
[1740731330579,7.5013,130.16,130.11,0.05387186]
[1740731330781,7.6941,130.13,130.02,1.53822488]
[1740731330982,7.5013,130.16,130.12,0.056756]
[1740731331182,7.5013,130.16,130.02,1.53822488]
[1740731331575,7.5013,130.16,130.08,0.05343057]
[1740731331780,7.5013,130.16,130.03,3.9488]
[1740731331975,3.6778,130.16,130.04,3.8282]
[1740731332176,3.6778,130.16,130.11,0.04861673]
[1740731333078,7.6942,130.12,130.11,0.04861673]
[1740731333278,7.5178,130.16,130.02,1.53822488]
[1740731333484,7.6949,130.11,130.02,1.53822488]
[1740731333686,193.6778,130.16,130.08,7.6965]
[1740731333886,193.6778,130.16,130.02,1.53822488]
[1740731334081,7.6951,130.11,130.02,1.53822488]
[1740731334282,193.6778,130.16,130.02,1.53822488]
[1740731334483,0.05871624,130.08,130.05,0.05928569]
[1740731334883,208.1378,130.16,130.02,1.53822488]
[1740731335083,0.05742601,130.08,130.05,0.05496873]
[1740731335285,0.05742601,130.08,130.02,1.53822488]
[1740731335478,208.1378,130.16,130.05,0.05236272]
[1740731335681,208.1378,130.16,130.02,1.53822488]
[1740731335682,0.05224921,130.06,130.02,1.53822488]
[1740731335989,208.1378,130.16,130.02,1.53822488]
[1740731335990,193.6778,130.16,130.09,0.05335005]
[1740731336188,7.6934,130.14,130.02,1.53822488]
[1740731336377,7.6934,130.14,130.11,0.05172696]
[1740731336681,4.2097,130.21,130.02,140.88766743]
[1740731336881,3.9958,130.2,130.02,140.88766743]
[1740731337182,3.9958,130.2,130.03,1.53810659]
[1740731337484,3.9958,130.2,130.1,0.05275404]
[1740731337681,7.693,130.15,130.03,1.53810659]
[1740731337875,3.9958,130.2,130.14,0.04952825]
[1740731338078,3.9958,130.2,130.03,1.53810659]
[1740731338276,7.6934,130.14,130.03,1.53810659]
[1740731338480,7.6934,130.14,130.1,0.05749104]
[1740731338679,7.6937,130.13,130.03,1.53810659]
[1740731338878,3.9721,130.19,130.11,0.0548226]
[1740731339083,3.9721,130.19,130.03,1.53810659]
[1740731339281,18.4321,130.19,130.14,0.05073779]
[1740731339486,18.4321,130.19,130.07,7.6971]
[1740731339677,18.4321,130.19,130.03,1.53810659]
[1740731339884,7.6938,130.13,130.03,1.53810659]
[1740731340087,3.9721,130.19,130.03,140.88754914]
[1740731340284,7.6923,130.16,130.03,140.88754914]
[1740731340487,3.9721,130.19,130.03,140.88754914]
[1740731340690,0.05388283,130.11,130.08,0.05228695]
[1740731341078,3.9721,130.19,130.03,1.53810659]
[1740731341283,0.04924809,130.11,130.08,0.05154387]
[1740731341578,3.9721,130.19,130.03,1.53810659]
[1740731341785,0.0519469,130.11,130.08,0.04866637]
[1740731341978,3.9721,130.19,130.08,0.04866637]
[1740731342185,0.05546772,130.11,130.08,0.05725416]
[1740731342388,18.4721,130.19,130.03,1.53810659]
[1740731342588,0.05485715,130.11,130.08,0.05552852]
[1740731342790,18.4721,130.19,130.1,7.6954]
[1740731342985,0.05266844,130.11,130.08,0.0554329]
[1740731343189,11.6623,130.19,130.03,140.88754914]
[1740731343383,3.9721,130.19,130.03,140.88754914]
[1740731343788,3.9721,130.19,130.1,7.695]
[1740731343990,3.9721,130.19,130.03,140.88754914]
[1740731344290,7.6935,130.14,130.1,0.05865861]
[1740731344686,7.6935,130.14,130.03,140.88754914]
[1740731344886,14.52,130.16,130.03,1.53810659]
[1740731345087,7.459,130.13,130.06,7.6974]
[1740731345291,7.459,130.13,130.07,0.05182723]
[1740731345487,7.459,130.13,130.06,7.6973]
[1740731345688,7.459,130.13,130.09,0.05599569]
[1740731345890,7.6977,130.07,129.98,3.9488]
[1740731346093,0.05830409,130.12,129.98,3.9488]
[1740731346284,190.0,130.12,129.94,7.6277]
[1740731346795,3.8406,130.11,129.98,7.7025]
[1740731347188,0.05775215,130.05,130.02,0.05238806]
[1740731347390,0.05775215,130.05,129.98,7.7025]
[1740731347593,3.8484,130.06,129.92,7.5549]
[1740731348088,193.8484,130.06,129.92,7.5549]
[1740731348288,193.8484,130.06,129.88,209.26]
[1740731348587,7.75643165,130.02,129.99,0.05890365]
[1740731348796,0.05583165,130.02,129.99,0.05890365]
[1740731350796,7.7008,130.01,129.99,0.05890365]
[1740731350991,0.05583165,130.02,129.99,0.05890365]
[1740731351787,3.7982,130.1,129.99,0.05890365]
[1740731352098,3.7982,130.1,129.94,14.46]
[1740731352287,3.7982,130.1,129.95,1.53905348]
[1740731352896,0.05714158,130.04,130.01,0.05419164]
[1740731353090,0.05714158,130.04,129.96,14.46]
[1740731353296,7.6962,130.09,130.04,7.6988]
[1740731354093,7.6943,130.12,130.03,14.44]
[1740731354298,0.05397089,130.08,130.05,0.04995417]
[1740731354704,7.6938,130.13,130.03,14.44]
[1740731354899,0.05519581,130.08,130.05,0.0568289]
[1740731355201,0.43,130.12,130.03,14.44]
[1740731355401,0.05788809,130.08,130.05,0.05780861]
[1740731356203,0.05788809,130.08,130.06,7.6974]
[1740731356398,0.05788809,130.08,130.05,0.05780861]
[1740731356799,7.75468809,130.08,130.05,0.05780861]
[1740731356999,0.05788809,130.08,130.05,0.05780861]
[1740731358001,0.05788809,130.08,130.05,7.75570861]
[1740731358504,0.05788809,130.08,130.06,7.6973]
[1740731358696,188.90372053,130.26,130.09,23.4]
[1740731358900,3.6312,130.41,130.11,23.4]
[1740731359496,3.6312,130.41,130.12,1.53704272]
[1740731359898,209.3,130.43,130.24,0.05016605]
[1740731360102,209.3,130.43,130.25,4.2445164]
[1740731360103,402.65871281,130.4,130.25,4.2445164]
[1740731360406,402.65871281,130.4,130.26,19.1245164]
[1740731360601,402.65871281,130.4,130.27,4.2445164]
[1740731360802,402.65871281,130.4,130.28,5.77967145]
[1740731361107,402.65871281,130.4,130.31,0.05898671]
[1740731361404,402.65871281,130.4,130.32,11.43387444]
[1740731361603,402.65871281,130.4,130.33,11.43387444]
[1740731361800,402.65871281,130.4,130.34,4.2445164]
[1740731362001,402.65871281,130.4,130.35,4.2445164]
[1740731362198,402.65871281,130.4,130.36,4.2445164]
[1740731362404,402.65871281,130.4,130.34,0.05531512]
[1740731362604,209.14,130.54,130.36,82.5206875]
[1740731362805,0.1,130.44,130.37,4.46675706]
[1740731363105,0.1,130.44,130.36,82.5206875]
[1740731363499,0.1,130.44,130.39,0.04836238]
[1740731363700,209.14,130.43,130.36,70.4512875]
[1740731363904,209.14,130.43,130.36,40.2712875]
[1740731364102,209.14,130.43,130.38,30.22502517]
[1740731364298,212.98,130.43,130.38,1.79032517]
[1740731364502,209.14,130.43,130.38,1.79032517]
[1740731365003,0.04681026,130.42,130.39,0.05207834]
[1740731365398,3.88681026,130.42,130.39,0.05207834]
[1740731368800,0.04681026,130.42,130.39,0.05207834]
[1740731377913,23.4,130.67,130.41,7.6767]
[1740731378114,14.84,130.55,130.42,3.7534]
[1740731378307,301.59007469,130.58,130.42,3.7534]
[1740731378507,7.6702,130.53,130.42,11.4299]
[1740731378708,14.84,130.57,130.42,3.7534]
[1740731378913,301.59007469,130.58,130.42,3.7534]
[1740731379107,301.59007469,130.58,130.48,0.05320018]
[1740731379108,14.84,130.56,130.48,0.05320018]
[1740731379409,14.84,130.6,130.42,3.7534]
[1740731379608,223.6,130.63,130.51,0.05746548]
[1740731380003,223.6,130.63,130.45,4.41973187]
[1740731380211,223.6,130.63,130.56,0.05086197]
[1740731380410,223.6,130.63,130.44,4.41973187]
[1740731380611,223.6,130.63,130.44,7.6753]
[1740731380811,0.1115,130.62,130.58,1.297e-05]
[1740731381110,7.6697,130.54,130.43,9.20888955]
[1740731381305,0.1115,130.62,130.43,1.53338955]
[1740731381607,7.6712,130.52,130.43,1.53338955]
[1740731381811,14.82,130.54,130.42,3.7534]
[1740731382112,7.72394571,130.49,130.46,0.05794944]
[1740731382317,0.05124571,130.49,130.35,124.11210935]
[1740731382515,0.05124571,130.49,130.35,128.06610935]
[1740731382815,208.78,130.52,130.36,4.38287905]
[1740731383011,208.78,130.52,130.35,128.06610935]
[1740731383316,208.78,130.52,130.35,131.99080935]
[1740731383513,0.05064648,130.45,130.42,0.05248564]
[1740731383915,208.78,130.52,130.35,131.99080935]
[1740731384216,0.05517045,130.45,130.42,0.05470237]
[1740731384618,208.78,130.52,130.35,12.25796701]
[1740731384815,0.05197573,130.45,130.42,0.04958429]
[1740731385116,398.78,130.52,130.35,12.25796701]
[1740731385416,0.05413538,130.45,130.42,0.0503665]
[1740731385717,208.78,130.52,130.36,6.41606135]
[1740731385911,0.05823218,130.45,130.42,0.04859965]
[1740731386314,0.05823218,130.45,130.37,4.37926701]
[1740731386315,398.78,130.52,130.36,6.41606135]
[1740731386515,7.73370917,130.45,130.42,0.05324745]
[1740731386711,0.05850917,130.45,130.42,0.05324745]
[1740731387021,208.78,130.52,130.36,6.41606135]
[1740731387319,0.05489747,130.45,130.36,6.41606135]
[1740731387510,208.78,130.52,130.43,0.05746653]
[1740731387913,208.78,130.52,130.38,6.41606135]
[1740731387914,7.6736,130.48,130.4,7.6776]
[1740731388114,208.78,130.52,130.38,6.41606135]
[1740731388414,7.674,130.47,130.4,7.6773]
[1740731388617,208.78,130.52,130.4,7.6773]
[1740731388819,0.05389283,130.45,130.42,0.05463114]
[1740731389027,0.05389283,130.45,130.37,10.79782497]
[1740731389217,208.78,130.52,130.42,0.053624]
[1740731389616,0.04967334,130.48,130.4,7.6773]
[1740731389818,0.04967334,130.48,130.46,0.05354109]
[1740731390018,208.78,130.52,130.39,7.6779]
[1740731390216,0.05068214,130.48,130.46,0.04944393]
[1740731390421,0.05068214,130.48,130.46,4.393e-05]
[1740731390621,0.05068214,130.48,130.4,7.6776]
[1740731390822,0.05068214,130.48,130.39,79.51502381]
[1740731391022,190.0,130.51,130.39,79.51502381]
[1740731391219,0.1163,130.53,130.39,79.51502381]
[1740731391522,0.05667785,130.47,130.45,0.05653019]
[1740731391918,0.1163,130.53,130.39,79.51502381]
[1740731392119,0.05425758,130.47,130.45,0.04892432]
[1740731392420,14.78,130.52,130.42,79.51502381]
[1740731392624,0.05860074,130.47,130.45,0.05541048]
[1740731392925,7.6742,130.46,130.45,0.05541048]
[1740731395728,11.5142,130.46,130.45,0.05541048]
[1740731396027,7.6742,130.46,130.45,0.05541048]